bitfinex-derivatives/quotes_BTCF0:USTF0_20220102
["timestamp","ask_amount","ask_price","bid_price","bid_amount"]
[1641151702741,0.32388975,46924.0,46923.0,0.08328681]
[1641151702944,0.32388975,46924.0,46923.0,0.02130681]
[1641151703441,0.32388975,46924.0,46923.0,0.10330681]
[1641151703641,0.18355408,46924.0,46923.0,0.10330681]
[1641151704343,0.18355408,46924.0,46923.0,0.42136681]
[1641151704744,0.18355408,46924.0,46923.0,0.33936681]
[1641151705047,1.56798401,46924.0,46923.0,0.33936681]
[1641151705251,1.56798401,46924.0,46923.0,0.02130681]
[1641151705543,0.2744033,46924.0,46923.0,0.10030681]
[1641151706242,0.2744033,46924.0,46923.0,0.42013081]
[1641151706444,0.2744033,46924.0,46923.0,1.53713081]
[1641151706643,0.2744033,46924.0,46923.0,0.42013081]
[1641151706843,0.2744033,46924.0,46923.0,0.34113081]
[1641151707244,0.4544033,46924.0,46923.0,0.34113081]
[1641151707444,0.2744033,46924.0,46923.0,1.54013081]
[1641151707645,0.14340021,46924.0,46923.0,1.54013081]
[1641151707842,0.14340021,46924.0,46923.0,0.42313081]
[1641151708643,0.14340021,46924.0,46923.0,0.34113081]
[1641151709044,0.05255099,46924.0,46923.0,0.34113081]
[1641151709244,0.05255099,46924.0,46923.0,1.45813081]
[1641151709445,0.05255099,46924.0,46923.0,1.54013081]
[1641151709645,0.14033567,46929.0,46923.0,1.54013081]
[1641151709845,0.14033567,46929.0,46924.0,0.009794]
[1641151710252,0.14033567,46929.0,46925.0,0.316119]
[1641151710448,0.14033567,46929.0,46926.0,0.8]
[1641151710646,0.14033567,46929.0,46927.0,1.117]
[1641151710858,0.14033567,46929.0,46927.0,1.436077]
[1641151711047,0.00351846,46928.0,46927.0,1.436077]
[1641151711448,0.00351846,46928.0,46927.0,1.519077]
[1641151711648,0.00351846,46928.0,46927.0,0.402077]
[1641151712750,0.00351846,46928.0,46927.0,0.319077]
[1641151713251,0.00351846,46928.0,46927.0,0.46959101]
[1641151713549,0.00351846,46928.0,46927.0,0.57389537]
[1641151714148,0.00351846,46928.0,46927.0,1.69089537]
[1641151714449,0.17834499,46935.0,46933.0,0.09089034]
[1641151714648,0.17834499,46940.0,46933.0,0.08892]
[1641151714948,0.17834499,46940.0,46934.0,0.316208]
[1641151715451,0.17834499,46937.0,46934.0,0.316208]
[1641151715663,1.9851,46943.0,46934.0,0.316208]
[1641151715849,0.17834499,46941.0,46934.0,0.316208]
[1641151716450,0.17834499,46941.0,46933.0,0.16892]
[1641151716650,0.17834499,46941.0,46935.0,0.02130198]
[1641151717451,0.17834499,46937.0,46935.0,0.10530198]
[1641151717651,0.17834499,46937.0,46935.0,0.24563765]
[1641151718351,0.17834499,46941.0,46935.0,0.24563765]
[1641151718551,0.17834499,46941.0,46935.0,0.16163765]
[1641151719455,0.17834499,46941.0,46935.0,1.28029266]
[1641151719952,0.17834499,46941.0,46938.0,0.42608983]
[1641151720354,0.17834499,46941.0,46939.0,0.314131]
[1641151720554,0.17834499,46941.0,46938.0,0.42608983]
[1641151720953,0.14033567,46945.0,46939.0,0.01144901]
[1641151721153,1.9679,46953.0,46943.0,0.02129809]
[1641151721354,1.9679,46953.0,46943.0,1.19908809]
[1641151721554,2.20058066,46955.0,46950.0,1.54298485]
[1641151721755,0.17834499,46951.0,46950.0,1.54298485]
[1641151721955,0.14033567,46955.0,46950.0,0.42598485]
[1641151722155,0.17834499,46951.0,46950.0,0.43306585]
[1641151722355,0.17834499,46951.0,46948.0,0.01144901]
[1641151722356,0.17834499,46951.0,46948.0,0.009794]
[1641151723375,0.17834499,46951.0,46948.0,0.100794]
[1641151724672,0.17834499,46951.0,46948.0,0.009794]
[1641151725273,0.09081233,46950.0,46948.0,0.009794]
[1641151725473,0.09081233,46950.0,46948.0,0.100794]
[1641151725673,0.09081233,46950.0,46949.0,1.117]
[1641151725978,0.09081233,46950.0,46949.0,1.59975783]
[1641151726275,0.09081233,46950.0,46949.0,0.80227083]
[1641151726474,0.26915732,46950.0,46949.0,0.1072554]
[1641151726773,0.09081233,46950.0,46949.0,0.1072554]
[1641151726975,0.09081233,46950.0,46949.0,0.4263254]
[1641151727174,0.26915732,46950.0,46949.0,0.4263254]
[1641151727374,0.09081233,46953.0,46949.0,0.2012554]
[1641151728174,1.66277762,46953.0,46949.0,0.2012554]
[1641151728576,0.17834499,46950.0,46949.0,0.2012554]
[1641151728773,0.17834499,46950.0,46949.0,0.1072554]
[1641151728974,0.25072499,46950.0,46945.0,0.14033567]
[1641151729273,0.17834499,46946.0,46941.0,0.36341066]
[1641151729473,0.17834499,46942.0,46941.0,0.36341066]
[1641151729675,0.17934499,46942.0,46941.0,0.36341066]
[1641151729876,0.18913899,46942.0,46938.0,0.84804653]
[1641151730074,0.18913899,46942.0,46938.0,0.36324014]
[1641151730075,0.17834499,46939.0,46938.0,0.36324014]
[1641151730275,0.26703499,46939.0,46938.0,0.36324014]
[1641151731079,0.26703499,46939.0,46935.0,0.84804653]
[1641151731277,0.17834499,46936.0,46929.0,0.14033567]
[1641151731476,0.17834499,46930.0,46929.0,0.14033567]
[1641151731876,0.17834499,46930.0,46927.0,0.02130563]
[1641151732078,0.17834499,46930.0,46929.0,0.318506]
[1641151732276,0.17834499,46930.0,46927.0,0.02130563]
[1641151733077,0.17834499,46930.0,46928.0,0.321314]
[1641151733279,0.17834499,46930.0,46927.0,0.02130563]
[1641151733477,1.29355083,46928.0,46927.0,0.11930563]
[1641151733876,1.29355083,46928.0,46927.0,0.43857163]
[1641151734078,1.29355083,46928.0,46927.0,0.11930563]
[1641151734679,1.29355083,46928.0,46927.0,0.02130563]
[1641151734879,1.38436316,46928.0,46927.0,0.34185663]
[1641151735281,1.38436316,46928.0,46927.0,0.02130563]
[1641151735581,1.38436316,46928.0,46927.0,0.12230563]
[1641151735782,1.38436316,46928.0,46927.0,0.44278163]
[1641151735980,0.09081233,46928.0,46927.0,0.44278163]
[1641151736681,0.09081233,46928.0,46927.0,0.34178163]
[1641151736883,1.29421921,46928.0,46927.0,0.34178163]
[1641151737282,0.17834499,46929.0,46927.0,0.44178163]
[1641151737483,0.17834499,46929.0,46928.0,0.00165501]
[1641151737881,0.17834499,46929.0,46928.0,0.31765901]
[1641151738081,0.17834499,46929.0,46928.0,0.00165501]
[1641151738483,0.17834499,46929.0,46928.0,0.32205501]
[1641151738686,0.17834499,46929.0,46928.0,0.00165501]
[1641151739286,1.4721125,46929.0,46928.0,0.09965501]
[1641151739483,1.4721125,46929.0,46928.0,0.41934701]
[1641151739985,1.29009478,46929.0,46928.0,0.09965501]
[1641151740186,1.29009478,46932.0,46928.0,0.476613]
[1641151740385,1.17547102,46929.0,46928.0,0.158]
[1641151740785,1.17547102,46929.0,46928.0,0.06]
[1641151740989,0.009794,46929.0,46927.0,0.02130563]
[1641151741288,0.009794,46929.0,46923.0,0.60521425]
[1641151741488,0.106794,46929.0,46928.0,0.05]
[1641151741687,0.12810717,46929.0,46923.0,0.60521425]
[1641151741888,0.14033567,46924.0,46923.0,0.60521425]
[1641151742087,0.24316967,46924.0,46923.0,0.51651425]
[1641151742288,0.24316967,46924.0,46923.0,0.17791425]
[1641151742491,0.24316967,46924.0,46919.0,0.02]
[1641151743291,0.33816967,46924.0,46919.0,0.02]
[1641151744792,1.17331007,46920.0,46919.0,0.02]
[1641151745292,1.26931007,46920.0,46919.0,0.02]
[1641151746696,1.17331007,46920.0,46919.0,0.02]
[1641151747296,0.095,46920.0,46919.0,0.02]
[1641151748499,0.095,46920.0,46919.0,0.2]
[1641151748899,1.29383421,46923.0,46919.0,0.2]
[1641151749299,1.27093764,46920.0,46919.0,0.2]
[1641151749499,1.27093764,46920.0,46919.0,0.02]
[1641151751300,1.28993764,46920.0,46919.0,0.02]
[1641151751499,0.114,46920.0,46919.0,0.02]
[1641151752699,1.29383421,46922.0,46919.0,0.02]
[1641151753301,0.113,46922.0,46919.0,0.02]
[1641151753903,1.17442732,46920.0,46919.0,0.02]
[1641151755305,1.28942732,46920.0,46919.0,0.02]
[1641151756205,0.115,46920.0,46919.0,0.02]
[1641151756406,0.20586103,46920.0,46919.0,0.38322091]
[1641151756608,0.09086103,46920.0,46919.0,0.38322091]
[1641151757308,0.20586103,46920.0,46919.0,0.38322091]
[1641151757509,0.115,46920.0,46919.0,0.02]
[1641151758112,0.20586103,46920.0,46919.0,0.02]
[1641151758712,0.09086103,46920.0,46919.0,0.02]
[1641151759414,0.20586103,46920.0,46919.0,0.02]
[1641151759613,0.115,46920.0,46919.0,0.02]
[1641151760612,0.09086103,46920.0,46919.0,0.02]
[1641151761413,0.20586103,46920.0,46919.0,0.02]
[1641151761614,1.61705912,46920.0,46919.0,0.02]
[1641151762314,1.61705912,46920.0,46919.0,0.2]
[1641151762714,1.50205912,46920.0,46919.0,0.2]
[1641151763416,1.61605912,46920.0,46919.0,0.2]
[1641151764832,0.09086103,46920.0,46919.0,0.2]
[1641151765433,0.20486103,46920.0,46919.0,0.2]
[1641151765637,0.114,46920.0,46919.0,0.2]
[1641151766235,0.70004086,46920.0,46919.0,0.2]
[1641151766534,0.70004086,46920.0,46919.0,0.02]
[1641151766736,0.58604086,46920.0,46919.0,0.2]
[1641151766934,0.58604086,46920.0,46919.0,0.02]
[1641151767335,0.70004086,46920.0,46919.0,0.02]
[1641151767635,0.114,46920.0,46919.0,0.02]
[1641151767834,0.114,46920.0,46919.0,0.2]
[1641151768634,0.82044937,46921.0,46919.0,0.2]
[1641151768835,0.09086342,46920.0,46919.0,0.2]
[1641151769236,0.82044937,46921.0,46919.0,0.2]
[1641151769436,0.114,46920.0,46919.0,0.2]
[1641151771036,0.20486342,46920.0,46919.0,0.2]
[1641151771238,0.09086342,46920.0,46919.0,0.2]
[1641151771436,0.20486342,46920.0,46919.0,0.2]
[1641151772639,0.09086342,46920.0,46919.0,0.2]
[1641151773340,0.20386342,46920.0,46919.0,0.2]
[1641151773538,0.113,46920.0,46919.0,0.2]
[1641151773938,0.20386342,46920.0,46919.0,0.2]
[1641151775244,0.09086342,46920.0,46919.0,0.2]
[1641151775442,0.20486342,46920.0,46919.0,0.14]
[1641151775644,0.20486342,46920.0,46919.0,0.02]
[1641151775844,1.02531279,46920.0,46919.0,0.02]
[1641151776742,0.91131279,46920.0,46919.0,0.02]
[1641151777341,1.02431279,46920.0,46919.0,0.02]
[1641151777542,0.93344937,46920.0,46919.0,0.02]
[1641151778243,1.02431279,46920.0,46919.0,0.02]
[1641151778742,0.91131279,46920.0,46919.0,0.02]
[1641151779346,1.02531279,46920.0,46919.0,0.02]
[1641151779544,0.20486342,46920.0,46919.0,0.02]
[1641151779745,0.114,46920.0,46919.0,0.02]
[1641151780748,0.09086342,46920.0,46919.0,0.02]
[1641151781446,0.20486342,46920.0,46919.0,0.02]
[1641151782749,0.09086342,46920.0,46919.0,0.02]
[1641151783451,0.21886342,46920.0,46919.0,0.02]
[1641151784650,0.09086342,46920.0,46919.0,0.02]
[1641151785350,0.22086342,46920.0,46919.0,0.02]
[1641151786555,0.34200342,46920.0,46919.0,0.02]
[1641151786753,0.21200342,46920.0,46919.0,0.02]
[1641151787453,0.34100342,46920.0,46919.0,0.02]
[1641151788754,0.21200342,46920.0,46919.0,0.02]
[1641151788954,1.61766913,46920.0,46919.0,0.02]
[1641151789454,1.74666913,46920.0,46919.0,0.02]
[1641151790756,1.61766913,46920.0,46919.0,0.02]
[1641151791455,1.74666913,46920.0,46919.0,0.02]
[1641151792657,1.61766913,46920.0,46919.0,0.02]
[1641151793460,1.74666913,46920.0,46919.0,0.02]
[1641151797262,1.61766913,46920.0,46919.0,0.02]
[1641151797463,1.74666913,46920.0,46919.0,0.02]
[1641151799265,1.61766913,46920.0,46919.0,0.02]
[1641151799471,1.74666913,46920.0,46919.0,0.02]
[1641151800365,0.34100342,46920.0,46919.0,0.02]
[1641151801467,0.34200342,46920.0,46919.0,0.02]
[1641151805268,0.21200342,46920.0,46919.0,0.02]
[1641151805470,0.34200342,46920.0,46919.0,0.02]
[1641151807272,0.21200342,46920.0,46919.0,0.02]
[1641151807473,0.34200342,46920.0,46919.0,0.02]
[1641151808973,0.21200342,46920.0,46919.0,0.02]
[1641151809572,0.34200342,46920.0,46919.0,0.02]
[1641151812680,0.34200342,46920.0,46919.0,0.2]
[1641151813479,0.47100342,46920.0,46919.0,0.2]
[1641151813881,1.48443263,46924.0,46919.0,0.2]
[1641151814081,1.48443263,46924.0,46923.0,0.18]
[1641151815281,1.48443263,46929.0,46923.0,0.18]
[1641151815480,1.48443263,46929.0,46923.0,0.337]
[1641151815681,1.48443263,46929.0,46923.0,0.157]
[1641151815882,1.48443263,46930.0,46923.0,0.157]
[1641151816182,1.48443263,46930.0,46928.0,0.18]
[1641151816381,1.48443263,46930.0,46928.0,0.24872]
[1641151817084,1.5057444,46931.0,46928.0,0.24872]
[1641151817580,1.5057444,46931.0,46928.0,0.40372]
[1641151817982,1.48443263,46930.0,46928.0,0.40372]
[1641151818582,1.48443263,46930.0,46928.0,0.22372]
[1641151818782,1.48443263,46930.0,46928.0,0.40372]
[1641151819182,1.48443263,46930.0,46928.0,0.22372]
[1641151819382,1.48443263,46930.0,46923.0,0.18]
[1641151819584,1.48443263,46930.0,46928.0,0.152]
[1641151820983,0.02131177,46931.0,46928.0,0.152]
[1641151821184,0.02131429,46929.0,46928.0,0.152]
[1641151821385,0.02131429,46929.0,46921.0,0.14033567]
[1641151822287,0.12113474,46928.0,46921.0,0.14033567]
[1641151823085,0.12113474,46928.0,46926.0,0.18]
[1641151823485,1.52823216,46927.0,46921.0,0.29633567]
[1641151823684,1.52823216,46927.0,46922.0,0.18]
[1641151823883,1.52823216,46927.0,46921.0,0.29633567]
[1641151824088,0.12113474,46926.0,46924.0,0.18]
[1641151825586,0.12113474,46926.0,46924.0,0.337]
[1641151825788,0.12113474,46927.0,46924.0,0.337]
[1641151827587,0.12113474,46927.0,46924.0,0.336]
[1641151827989,0.12113474,46928.0,46924.0,0.336]
[1641151828201,1.6493669,46928.0,46924.0,0.336]
[1641151828400,0.12113474,46926.0,46924.0,0.336]
[1641151829100,0.09086337,46925.0,46924.0,0.336]
[1641151829301,0.09086337,46925.0,46924.0,0.156]
[1641151829501,0.21199811,46925.0,46924.0,0.153]
[1641151829801,0.21199811,46926.0,46924.0,0.153]
[1641151830006,0.09086337,46926.0,46925.0,0.18]
[1641151830702,0.09086337,46928.0,46925.0,0.18]
[1641151831510,0.09086337,46928.0,46925.0,0.335]
[1641151831705,1.41089667,46926.0,46925.0,0.335]
[1641151833405,1.41089667,46926.0,46925.0,0.18]
[1641151833606,1.41089667,46926.0,46925.0,0.333]
[1641151833907,0.09086337,46928.0,46925.0,0.333]
[1641151835009,0.09086337,46928.0,46925.0,0.18]
[1641151835507,0.09086337,46928.0,46925.0,0.333]
[1641151836909,0.09086337,46928.0,46925.0,0.18]
[1641151837611,0.09086337,46928.0,46925.0,0.334]
[1641151839008,0.09086337,46928.0,46925.0,0.18]
[1641151839507,0.09086337,46928.0,46925.0,0.337]
[1641151841110,0.09086337,46928.0,46925.0,0.18]
[1641151841610,0.09086337,46928.0,46925.0,0.337]
[1641151843113,0.09086337,46928.0,46925.0,0.18]
[1641151843511,0.09086337,46928.0,46925.0,0.337]
[1641151845213,0.12112322,46927.0,46925.0,0.337]
[1641151845416,0.11612322,46927.0,46925.0,0.337]
[1641151845614,0.11612322,46927.0,46925.0,0.52]
[1641151846214,0.09086337,46926.0,46925.0,0.52]
[1641151847413,0.09086337,46928.0,46925.0,0.52]
[1641151847617,0.09086337,46928.0,46925.0,0.703]
[1641151849516,0.09086337,46928.0,46925.0,0.18]
[1641151849718,0.10065737,46928.0,46921.0,0.14033567]
[1641151849917,0.001,46923.0,46920.0,0.36322091]
[1641151850116,0.001,46921.0,46920.0,0.36322091]
[1641151850317,0.001,46921.0,46919.0,0.02]
[1641151850517,0.010894,46920.0,46919.0,0.02]
[1641151850918,0.0001,46920.0,46919.0,0.2]
[1641151851120,1.61909553,46927.0,46919.0,0.38021306]
[1641151851320,1.61909553,46927.0,46926.0,0.18]
[1641151851517,1.52823216,46927.0,46926.0,0.18]
[1641151851719,1.68767544,46934.0,46926.0,0.18]
[1641151851917,1.68767544,46934.0,46930.0,0.18]
[1641151852819,0.15012967,46936.0,46930.0,0.18]
[1641151853120,0.14033567,46936.0,46930.0,0.24035]
[1641151853323,0.14033567,46936.0,46935.0,0.18]
[1641151853520,0.14133567,46936.0,46935.0,0.18]
[1641151854022,0.14033567,46936.0,46935.0,0.18]
[1641151854222,0.02130621,46943.0,46935.0,0.18]
[1641151854420,0.88121223,46945.0,46942.0,0.18]
[1641151854620,0.88121223,46945.0,46942.0,0.24178]
[1641151854822,0.74087656,46945.0,46942.0,0.24178]
[1641151855222,0.71957103,46945.0,46942.0,0.24178]
[1641151855623,0.90457103,46945.0,46942.0,0.24178]
[1641151856025,0.185,46945.0,46942.0,0.24178]
[1641151856623,0.185,46945.0,46944.0,0.14033567]
[1641151857023,0.0312,46949.0,46944.0,0.14033567]
[1641151857223,0.0312,46949.0,46948.0,0.18]
[1641151857623,0.2052,46949.0,46948.0,0.18]
[1641151858426,0.2052,46949.0,46944.0,0.14033567]
[1641151859024,0.0312,46949.0,46944.0,0.14033567]
[1641151859725,0.2042,46949.0,46944.0,0.14033567]
[1641151861126,0.0312,46949.0,46944.0,0.14033567]
[1641151861728,0.2022,46949.0,46944.0,0.14033567]
[1641151863028,0.0312,46949.0,46944.0,0.14033567]
[1641151863629,0.2022,46949.0,46944.0,0.14033567]
[1641151865032,0.0312,46949.0,46944.0,0.14033567]
[1641151865732,0.2072,46949.0,46944.0,0.14033567]
[1641151867034,0.0312,46949.0,46944.0,0.14033567]
[1641151867233,0.09082707,46948.0,46944.0,0.14033567]
[1641151867835,1.41020183,46945.0,46944.0,0.14033567]
[1641151868435,0.09082707,46948.0,46944.0,0.14033567]
[1641151868836,0.12107575,46947.0,46944.0,0.14033567]
[1641151869735,1.52959004,46951.0,46945.0,0.009794]
[1641151869936,0.71957103,46960.0,46950.0,0.20129365]
[1641151870138,0.71957103,46960.0,46955.0,0.18]
[1641151870337,0.71957103,46960.0,46959.0,0.18]
[1641151870542,0.71957103,46960.0,46956.0,0.004881]
[1641151870836,1.54387757,46962.0,46957.0,0.009794]
[1641151871239,1.54387757,46962.0,46959.0,0.18]
[1641151871441,1.54387757,46962.0,46957.0,0.009794]
[1641151871640,1.54387757,46962.0,46957.0,0.190794]
[1641151872042,1.09589519,46971.0,46957.0,0.190794]
[1641151872241,0.16162932,46971.0,46957.0,0.190794]
[1641151873041,0.16162932,46971.0,46957.0,0.009794]
[1641151873744,0.16162932,46971.0,46957.0,0.190794]
[1641151874245,0.95029192,46958.0,46957.0,0.190794]
[1641151874442,0.0001,46970.0,46958.0,0.319905]
[1641151874742,0.0001,46970.0,46961.0,0.18]
[1641151875043,0.0001,46970.0,46966.0,0.14033567]
[1641151875243,0.0001,46970.0,46966.0,0.20729567]
[1641151875743,0.0001,46970.0,46966.0,0.38929567]
[1641151876746,0.0001,46970.0,46967.0,0.009794]
[1641151877144,0.0001,46970.0,46967.0,0.329672]
[1641151877344,0.0001,46970.0,46967.0,0.009794]
[1641151877747,0.0001,46970.0,46967.0,0.205794]
[1641151879545,0.0001,46970.0,46967.0,0.009794]
[1641151879747,0.0001,46970.0,46967.0,0.207794]
[1641151881048,0.0001,46970.0,46967.0,0.009794]
[1641151881648,0.0001,46970.0,46967.0,0.196]
[1641151881849,0.1801,46970.0,46967.0,0.196]
[1641151882251,0.25646,46970.0,46967.0,0.196]
[1641151882851,0.07646,46970.0,46967.0,0.196]
[1641151883252,0.07646,46970.0,46966.0,0.14033567]
[1641151883450,0.0001,46970.0,46966.0,0.14033567]
[1641151883649,0.0001,46970.0,46967.0,0.189]
[1641151883850,0.1801,46970.0,46967.0,0.189]
[1641151884052,0.0001,46970.0,46967.0,0.189]
[1641151885065,0.0001,46970.0,46966.0,0.14033567]
[1641151885265,0.1801,46970.0,46966.0,0.14033567]
[1641151885465,0.0001,46970.0,46966.0,0.14033567]
[1641151885665,0.0001,46970.0,46966.0,0.33033567]
[1641151887068,0.0001,46970.0,46966.0,0.14033567]
[1641151887468,0.001,46967.0,46966.0,0.14033567]
[1641151887767,0.001,46967.0,46966.0,0.32233567]
[1641151887970,0.0001,46970.0,46966.0,0.32233567]
[1641151888972,0.0001,46970.0,46966.0,0.14033567]
[1641151889872,0.0001,46970.0,46966.0,0.33033567]
[1641151891678,0.0001,46970.0,46966.0,0.14033567]
[1641151891874,0.0001,46970.0,46966.0,0.33133567]
[1641151893078,0.0001,46970.0,46966.0,0.14033567]
[1641151893979,0.0001,46970.0,46966.0,0.33633567]
[1641151895179,0.0001,46970.0,46966.0,0.14033567]
[1641151895782,0.0001,46970.0,46966.0,0.33833567]
[1641151897083,0.0001,46970.0,46966.0,0.14033567]
[1641151897984,0.0001,46970.0,46966.0,0.33933567]
[1641151899083,0.0001,46970.0,46966.0,0.14033567]
[1641151899882,0.0001,46970.0,46966.0,0.33933567]
[1641151900183,0.09087825,46970.0,46966.0,0.33933567]
[1641151901182,0.09087825,46970.0,46966.0,0.14033567]
[1641151901783,0.09087825,46970.0,46966.0,0.33933567]
[1641151901986,0.0001,46970.0,46966.0,0.33933567]
[1641151902385,0.18,46968.0,46966.0,0.33933567]
[1641151902584,0.23894,46968.0,46966.0,0.33933567]
[1641151902784,0.23894,46968.0,46966.0,0.199]
[1641151903284,0.23894,46968.0,46960.0,0.36322091]
[1641151903586,0.05894,46968.0,46960.0,0.36322091]
[1641151903785,0.27077825,46967.0,46960.0,0.194]
[1641151903987,0.18,46961.0,46960.0,0.194]
[1641151904186,0.18,46961.0,46956.0,0.36322091]
[1641151904490,0.20130707,46957.0,46953.0,0.84804653]
[1641151904686,0.18,46954.0,46951.0,1.21149504]
[1641151904888,0.001,46952.0,46947.0,1.32366171]
[1641151905086,0.18,46948.0,46946.0,1.33142086]
[1641151905286,0.46067134,46947.0,46946.0,1.33142086]
[1641151905486,1.7674218,46947.0,46946.0,1.33142086]
[1641151905685,1.7674218,46947.0,46942.0,1.45423071]
[1641151905885,1.297,46943.0,46942.0,1.45423071]
[1641151906085,1.298,46943.0,46942.0,1.45423071]
[1641151906286,0.009794,46942.0,46935.0,1.56444103]
[1641151906487,0.18,46936.0,46935.0,1.56444103]
[1641151906687,1.37458,46936.0,46935.0,1.56444103]
[1641151907089,1.37458,46936.0,46928.0,1.3319547]
[1641151907285,0.18,46929.0,46928.0,1.3319547]
[1641151907486,1.297,46929.0,46928.0,1.3319547]
[1641151907688,1.31831331,46929.0,46925.0,1.45304149]
[1641151907889,1.297,46926.0,46925.0,1.24234373]
[1641151908088,1.37426,46926.0,46919.0,0.02]
[1641151908288,1.297,46923.0,46919.0,0.02]
[1641151908690,0.18,46920.0,46919.0,0.02]
[1641151908892,0.21111098,46920.0,46919.0,0.02]
[1641151909090,1.328113,46920.0,46919.0,0.02]
[1641151909291,1.60878434,46920.0,46919.0,0.02]
[1641151909490,1.68833355,46920.0,46919.0,0.02]
[1641151909695,1.66801455,46920.0,46919.0,0.02]
[1641151909892,1.85201455,46920.0,46919.0,0.02]
[1641151910090,1.85201455,46920.0,46910.0,0.42120402]
[1641151910091,1.87333715,46920.0,46910.0,0.42120402]
[1641151910292,1.297,46911.0,46910.0,0.42120402]
[1641151910491,1.394974,46911.0,46910.0,0.42120402]
[1641151911292,1.67564534,46911.0,46910.0,0.42120402]
[1641151911493,1.67564534,46911.0,46898.0,0.25734885]
[1641151911698,0.06,46910.0,46898.0,0.25734885]
[1641151912297,0.18,46910.0,46898.0,0.25734885]
[1641151912893,0.18,46906.0,46895.0,0.009794]
[1641151913093,0.18,46909.0,46899.0,0.01211545]
[1641151913294,0.18,46909.0,46896.0,0.01211545]
[1641151913494,0.18,46909.0,46895.0,0.009794]
[1641151913897,0.81079999,46900.0,46897.0,0.0121157]
[1641151914097,0.81079999,46900.0,46896.0,0.26946455]
[1641151914802,0.81079999,46900.0,46896.0,0.25734885]
[1641151914997,0.81079999,46900.0,46898.0,0.25734885]
[1641151915798,0.98279999,46900.0,46898.0,0.25734885]
[1641151916599,0.98279999,46900.0,46898.0,0.31734885]
[1641151916800,1.1582857,46902.0,46898.0,0.43734885]
[1641151917002,1.27418789,46905.0,46901.0,0.18]
[1641151917201,1.27418789,46905.0,46902.0,0.009794]
[1641151917405,1.15891359,46905.0,46904.0,0.14033567]
[1641151917604,1.15891359,46905.0,46904.0,0.21180567]
[1641151917809,1.27418789,46909.0,46904.0,0.40780567]
[1641151918218,1.27418789,46913.0,46904.0,0.40780567]
[1641151918820,0.02132316,46906.0,46904.0,0.40780567]
[1641151919023,0.181,46905.0,46904.0,0.26747]
[1641151919222,0.02232468,46905.0,46899.0,1.33289818]
[1641151919421,0.001,46900.0,46899.0,1.33289818]
[1641151919823,0.001,46900.0,46899.0,1.52189818]
[1641151920521,0.001,46900.0,46899.0,0.189]
[1641151921023,0.190794,46900.0,46899.0,0.189]
[1641151921222,1.307794,46900.0,46894.0,1.33289818]
[1641151921423,1.307794,46900.0,46892.0,0.28067134]
[1641151921424,1.117,46896.0,46892.0,1.61356952]
[1641151921621,1.117,46898.0,46892.0,1.61356952]
[1641151921822,1.297,46897.0,46894.0,0.191]
[1641151922422,0.02132852,46895.0,46894.0,0.191]
[1641151922626,0.009794,46894.0,46890.0,0.88339818]
[1641151922824,1.297,46891.0,46890.0,0.88339818]
[1641151923022,1.298,46891.0,46890.0,0.88339818]
[1641151923422,1.43833567,46891.0,46890.0,0.88339818]
[1641151923622,1.43833567,46891.0,46886.0,1.45405085]
[1641151923822,1.118,46887.0,46886.0,1.45405085]
[1641151924024,1.194994,46887.0,46884.0,0.25983209]
[1641151924223,0.001,46885.0,46880.0,1.45405085]
[1641151924423,1.193994,46887.0,46880.0,1.45405085]
[1641151924623,0.02133474,46881.0,46880.0,1.45405085]
[1641151924822,1.13833474,46881.0,46880.0,1.45405085]
[1641151925624,1.13833474,46881.0,46874.0,1.59438652]
[1641151925826,0.009794,46880.0,46874.0,1.59438652]
[1641151926926,0.81064596,46878.0,46874.0,0.14033567]
[1641151927529,0.81064596,46879.0,46874.0,0.14033567]
[1641151927926,0.19,46878.0,46874.0,0.14033567]
[1641151929326,0.81064596,46879.0,46874.0,1.47403989]
[1641151929825,0.99864596,46879.0,46874.0,1.47403989]
[1641151930225,0.81064596,46878.0,46874.0,1.47403989]
[1641151931230,0.82043996,46880.0,46875.0,1.33370422]
[1641151931428,0.57880886,46878.0,46875.0,1.33370422]
[1641151931828,0.75380886,46878.0,46875.0,1.33370422]
[1641151932232,0.175,46878.0,46876.0,1.33370422]
[1641151933033,0.175,46878.0,46874.0,0.14033567]
[1641151933230,1.126794,46880.0,46874.0,0.14033567]
[1641151933932,1.318794,46880.0,46874.0,0.14033567]
[1641151934134,0.192,46880.0,46874.0,0.32033567]
[1641151934333,0.192,46880.0,46878.0,0.18]
[1641151934531,0.14033567,46886.0,46878.0,0.18]
[1641151934733,0.02132876,46894.0,46885.0,0.18]
[1641151934935,1.9208,46903.0,46889.0,0.18]
[1641151935234,2.98974995,46908.0,46889.0,0.18]
[1641151935434,1.117,46904.0,46894.0,0.14033567]
[1641151936036,0.009794,46903.0,46894.0,0.14033567]
[1641151936233,1.117,46900.0,46894.0,0.14033567]
[1641151938035,0.178,46900.0,46894.0,0.31933567]
[1641151938437,0.178,46900.0,46894.0,0.49933567]
[1641151938634,0.178,46900.0,46894.0,0.31933567]
[1641151939339,1.126794,46903.0,46894.0,0.14033567]
[1641151940038,1.133794,46903.0,46894.0,0.32933567]
[1641151940840,0.016794,46903.0,46894.0,0.32933567]
[1641151941237,0.009794,46903.0,46894.0,0.14033567]
[1641151942037,1.245794,46903.0,46894.0,0.32933567]
[1641151943443,1.126794,46903.0,46894.0,0.14033567]
[1641151943943,1.293794,46903.0,46894.0,0.32533567]
[1641151944541,1.293794,46903.0,46886.0,0.02132491]
[1641151944542,0.02132969,46895.0,46875.0,2.12977962]
[1641151944741,1.117,46885.0,46875.0,2.12977962]
[1641151944941,1.19726,46885.0,46874.0,0.14033567]
[1641151945342,1.19726,46885.0,46874.0,0.32033567]
[1641151945746,1.21859333,46885.0,46874.0,0.32033567]
[1641151946044,1.41059333,46885.0,46874.0,0.32033567]
[1641151946442,1.41059333,46885.0,46874.0,0.14033567]
[1641151946643,1.38994284,46882.0,46874.0,0.14033567]
[1641151946842,1.27355402,46878.0,46877.0,0.35949159]